bitfinex-derivatives/quotes_BNBF0:USTF0_20241225
["timestamp","ask_amount","ask_price","bid_price","bid_amount"]
[1735111547621,0.26155489,703.7,702.18,0.28482725]
[1735111548121,0.2842201,703.68,702.18,0.28482725]
[1735111548717,0.26156206,703.67,702.18,0.28482725]
[1735111549319,0.2842201,703.68,702.18,0.28482725]
[1735111549524,0.26156865,703.67,702.18,0.28482725]
[1735111550426,0.26156698,703.66,702.18,0.28482725]
[1735111550623,0.2842201,703.68,702.18,0.28482725]
[1735111550816,0.26156621,703.67,702.18,0.28482725]
[1735111551820,0.2842201,703.68,702.18,0.28482725]
[1735111561826,0.26158339,703.67,702.18,0.28482725]
[1735111562730,0.2842201,703.68,702.18,0.28482725]
[1735111566025,0.2842201,703.68,701.77,1.06275323]
[1735111566926,0.2842201,703.68,701.76,1.06275323]
[1735111567129,0.26162632,703.67,701.76,1.06275323]
[1735111567926,0.26162632,703.67,701.19,2.81374803]
[1735111567927,0.26162632,703.67,702.04,1.06275323]
[1735111568631,0.26165612,703.66,702.04,1.06275323]
[1735111568931,0.26165612,703.65,702.04,1.06275323]
[1735111569135,0.26165612,703.64,701.99,1.06275323]
[1735111569433,0.26165612,703.63,701.99,1.06275323]
[1735111569633,0.26165612,703.62,701.99,1.06275323]
[1735111569931,0.26165612,703.61,701.99,1.06275323]
[1735111570127,0.2842201,703.68,701.91,1.06275323]
[1735111570128,0.26165612,703.6,701.91,1.06275323]
[1735111570427,0.26165612,703.59,701.91,1.06275323]
[1735111570634,0.26165612,703.58,701.91,1.06275323]
[1735111570831,0.26165612,703.57,701.91,1.06275323]
[1735111571032,0.26165612,703.56,701.91,1.06275323]
[1735111571235,0.26165612,703.67,701.84,1.06275323]
[1735111571433,0.26165612,703.66,701.84,1.06275323]
[1735111571734,0.26165612,703.65,701.84,1.06275323]
[1735111571929,0.26165612,703.64,701.84,1.06275323]
[1735111572129,0.26165612,703.67,701.84,1.06275323]
[1735111572334,0.2842201,703.68,701.7,1.06275323]
[1735111572335,0.26165612,703.66,701.7,1.06275323]
[1735111572533,0.26165612,703.65,701.7,1.06275323]
[1735111572730,0.26165612,703.64,701.7,1.06275323]
[1735111572938,0.26165612,703.63,701.7,1.06275323]
[1735111573131,0.26165612,703.63,700.96,2.16978784]
[1735111573132,0.26165612,703.62,701.64,1.06275323]
[1735111573336,0.26165612,703.61,701.64,1.06275323]
[1735111573535,0.26165612,703.6,701.64,1.06275323]
[1735111573836,0.26165612,703.59,701.64,1.06275323]
[1735111574132,0.26173656,703.58,701.64,1.06275323]
[1735111574337,0.26173656,703.57,701.62,1.06275323]
[1735111574535,0.26173656,703.56,701.62,1.06275323]
[1735111574728,0.26173656,703.67,701.62,1.06275323]
[1735111574932,0.26173656,703.66,701.62,1.06275323]
[1735111575134,0.26173656,703.65,701.63,1.06275323]
[1735111575333,0.26173656,703.64,701.63,1.06275323]
[1735111575533,0.26173656,703.63,701.63,1.06275323]
[1735111575735,0.26173656,703.62,701.63,1.06275323]
[1735111575930,0.2842201,703.68,701.63,1.06275323]
[1735111575931,0.26173656,703.61,701.63,1.06275323]
[1735111576131,0.26173656,703.6,701.63,1.06275323]
[1735111576336,0.26173656,703.59,701.6,1.06275323]
[1735111576537,0.26173656,703.58,701.6,1.06275323]
[1735111576732,0.26174333,703.57,701.6,1.06275323]
[1735111576935,0.26174333,703.56,701.58,1.06275323]
[1735111577238,0.26174333,703.55,701.58,1.06275323]
[1735111577538,0.26174333,703.54,701.59,1.06275323]
[1735111577738,0.26174333,703.53,701.59,1.06275323]
[1735111578037,0.26174333,703.52,701.59,1.06275323]
[1735111578234,0.26174333,703.51,701.59,1.06275323]
[1735111578438,0.2842201,703.68,701.56,1.06275323]
[1735111578439,0.26174333,703.5,701.56,1.06275323]
[1735111578637,0.26174333,703.49,701.56,1.06275323]
[1735111578839,0.26174333,703.48,699.63,4.36641088]
[1735111579141,0.26174333,703.47,699.64,5.35834665]
[1735111579439,0.2842201,703.68,699.65,5.35834665]
[1735111579640,0.26172573,703.46,699.66,2.8060949]
[1735111579834,0.26172573,703.45,699.67,5.35834665]
[1735111580033,0.26172573,703.44,701.67,1.05977481]
[1735111580239,0.26171938,703.43,701.67,1.05977481]
[1735111580434,0.26171938,703.42,701.67,1.05977481]
[1735111580637,0.26171938,703.41,701.67,1.05977481]
[1735111580838,0.26171938,703.4,701.67,1.05977481]
[1735111581044,0.26171938,703.39,701.63,1.05977481]
[1735111581340,0.26171938,703.38,701.63,1.05977481]
[1735111581539,0.26171938,703.37,701.63,1.05977481]
[1735111581739,0.26171938,703.36,701.63,1.05977481]
[1735111581939,0.26171938,703.35,701.63,1.05977481]
[1735111582140,0.2842201,703.68,701.63,1.05977481]
[1735111582437,0.26172115,703.67,701.63,1.05977481]
[1735111582640,0.26172115,703.66,701.63,1.05977481]
[1735111582834,0.26172115,703.65,701.63,1.05977481]
[1735111583038,0.26172115,703.64,701.63,1.05977481]
[1735111583238,0.2842201,703.68,701.63,1.05977481]
[1735111583239,0.26172115,703.63,701.63,1.05977481]
[1735111583435,0.26172115,703.62,701.63,1.05977481]
[1735111583639,0.26172115,703.61,701.63,1.05977481]
[1735111583839,0.26172115,703.6,701.63,1.05977481]
[1735111584037,0.26172115,703.59,701.63,1.05977481]
[1735111584339,0.26172115,703.58,701.62,1.05977481]
[1735111584540,0.26172115,703.57,701.62,1.05977481]
[1735111584741,0.26172115,703.56,701.62,1.05977481]
[1735111584943,0.26172745,703.55,701.62,1.05977481]
[1735111585143,0.26172745,703.54,701.62,1.05977481]
[1735111585339,0.26172745,703.53,701.62,1.05977481]
[1735111585539,0.26172745,703.52,701.62,1.05977481]
[1735111585742,0.26172745,703.51,701.62,1.05977481]
[1735111585941,0.26172745,703.5,701.62,1.05977481]
[1735111586242,0.26172745,703.49,701.62,1.05977481]
[1735111586436,0.26172745,703.49,701.64,1.05977481]
[1735111586643,0.26172745,703.48,701.64,1.05977481]
[1735111586943,0.26172745,703.47,701.64,1.05977481]
[1735111587241,0.26172745,703.46,701.64,1.05977481]
[1735111587435,0.26172745,703.67,701.64,1.05977481]
[1735111587636,0.26172745,703.67,701.0,2.16370691]
[1735111587637,0.26172745,703.66,701.56,1.05977481]
[1735111587839,0.26172745,703.65,701.56,1.05977481]
[1735111588041,0.26172745,703.64,701.56,1.05977481]
[1735111588242,0.26172745,703.63,701.56,1.05977481]
[1735111588442,0.26172745,703.62,701.56,1.05977481]
[1735111588643,0.26172745,703.61,701.56,1.05977481]
[1735111588943,0.26172745,703.6,701.56,1.05977481]
[1735111589144,0.26172745,703.59,701.49,1.05977481]
[1735111589342,0.26172745,703.58,701.49,1.05977481]
[1735111589639,0.26172745,703.57,701.49,1.05977481]
[1735111589844,0.26172745,703.56,701.49,1.05977481]
[1735111590047,0.26172745,703.55,701.49,1.05977481]
[1735111590244,0.26172745,703.54,701.42,1.05977481]
[1735111590445,0.26172942,703.53,701.43,0.2851318]
[1735111590645,0.26172942,703.52,701.43,0.2851318]
[1735111590846,0.26172942,703.51,701.43,0.2851318]
[1735111591141,0.26172942,703.5,701.44,1.05977481]
[1735111591346,0.26172942,703.49,701.44,1.05977481]
[1735111591548,0.26172942,703.48,701.44,1.05977481]
[1735111591842,0.26172942,703.47,701.44,1.05977481]
[1735111592040,0.26172942,703.46,701.47,1.05977481]
[1735111592245,0.26172942,703.45,701.47,1.05977481]
[1735111592446,0.26172942,703.44,701.47,1.05977481]
[1735111592641,0.26172942,703.43,701.47,1.05977481]
[1735111592841,0.26172942,703.42,701.47,1.05977481]
[1735111593047,0.2842201,703.68,701.49,1.05977481]
[1735111593248,0.26172595,703.67,701.49,1.05977481]
[1735111593948,0.26172595,703.67,701.52,1.05977481]
[1735111595149,0.26172595,703.67,701.56,1.05977481]
[1735111595551,0.26172284,703.66,701.56,1.05977481]
[1735111595747,0.2842201,703.68,701.56,1.05977481]
[1735111595951,0.26171925,703.67,701.56,1.05977481]
[1735111596251,0.26171925,703.67,701.59,1.05977481]
[1735111596552,0.2842201,703.68,701.59,1.05977481]
[1735111596753,0.28426453,703.57,701.59,1.05977481]
[1735111596947,0.26173106,703.56,701.59,1.05977481]
[1735111597146,0.28427665,703.54,701.59,1.05977481]
[1735111597348,0.26173106,703.53,701.59,1.05977481]
[1735111598253,0.26173106,703.53,701.65,1.05977481]
[1735111598451,0.26173106,703.52,701.65,1.05977481]
[1735111598654,0.26173106,703.51,701.65,1.05977481]
[1735111598851,0.26173106,703.5,701.65,1.05977481]
[1735111599049,0.26173106,703.49,701.65,1.05977481]
[1735111599248,0.26173106,703.48,701.85,1.05977481]
[1735111599450,0.26173106,703.47,701.85,1.05977481]
[1735111599654,0.26173106,703.46,701.85,1.05977481]
[1735111599858,0.26173106,703.45,701.85,1.05977481]
[1735111600059,0.26173106,703.44,701.85,1.05977481]
[1735111600352,0.26173106,703.43,701.85,1.05977481]
[1735111600558,0.26173106,703.42,701.85,1.05977481]
[1735111600755,0.26173106,703.41,701.85,1.05977481]
[1735111601057,0.26173106,703.4,701.85,1.05977481]
[1735111601352,0.26173106,703.39,701.85,1.05977481]
[1735111601556,0.26173106,703.38,701.84,1.05977481]
[1735111601753,0.26173106,703.37,701.84,1.05977481]
[1735111602058,0.26173106,703.36,701.84,1.05977481]
[1735111602258,0.26173106,703.35,701.84,1.05977481]
[1735111602558,0.26173106,703.34,701.84,1.05977481]
[1735111602758,0.26173106,703.33,701.8,1.05977481]
[1735111602958,0.26173106,703.32,701.8,1.05977481]
[1735111603159,0.26173106,703.31,701.8,1.05977481]
[1735111603360,0.26173106,703.3,701.8,1.05977481]
[1735111603560,0.26173106,703.29,701.8,1.05977481]
[1735111603759,0.26173106,703.28,701.82,1.05977481]
[1735111603959,0.26173106,703.27,701.82,1.05977481]
[1735111604160,0.26175649,703.26,701.82,1.05977481]
[1735111604361,0.26175649,703.25,701.82,1.05977481]
[1735111604561,0.26175649,703.24,701.82,1.05977481]
[1735111604763,0.26175649,703.24,701.84,1.05977481]
[1735111605762,0.26175649,703.24,701.87,1.05977481]
[1735111606968,0.26176724,703.23,701.87,1.05977481]
[1735111607161,0.26176724,703.22,701.87,1.05977481]
[1735111607367,0.26176724,703.21,701.87,1.05977481]
[1735111607561,0.26176724,703.2,701.87,1.05977481]
[1735111607766,0.26176724,703.19,701.93,1.05977481]
[1735111607965,0.26176724,703.18,701.93,1.05977481]
[1735111608268,0.26176724,703.17,701.93,1.05977481]
[1735111608467,0.26176724,703.16,701.93,1.05977481]
[1735111608767,0.26176724,703.16,701.7,1.05977481]
[1735111608768,0.26176724,703.15,701.9,1.05977481]
[1735111608963,0.26176724,703.14,701.9,1.05977481]
[1735111609166,0.26176724,703.13,701.9,1.05977481]
[1735111609366,0.26176724,703.12,701.9,1.05977481]
[1735111609562,0.26176724,703.24,701.9,1.05977481]
[1735111609763,0.26176737,703.23,701.9,1.05977481]
[1735111609965,0.26176737,703.22,701.9,1.05977481]
[1735111610168,0.26176737,703.21,701.9,1.05977481]
[1735111610467,0.26176737,703.2,701.9,1.05977481]
[1735111610668,0.26176737,703.19,701.92,1.05977481]
[1735111610867,0.26176737,703.18,701.92,1.05977481]
[1735111611070,0.26176737,703.17,701.92,1.05977481]
[1735111611263,0.26176737,703.16,701.92,1.05977481]
[1735111611467,0.26176737,703.15,701.92,1.05977481]
[1735111611769,0.26176737,703.14,701.92,1.05977481]
[1735111611966,0.26176737,703.13,701.91,1.05977481]
[1735111612170,0.26176737,703.12,701.91,1.05977481]
[1735111612365,0.28439388,703.25,701.91,1.05977481]
[1735111612570,0.26176645,703.24,701.91,1.05977481]
[1735111612971,0.26176645,703.24,701.93,1.05977481]
[1735111613271,0.26175137,703.23,701.93,1.05977481]
[1735111613470,0.28441006,703.21,701.93,1.05977481]
[1735111613670,0.26175137,703.2,701.93,1.05977481]
[1735111613872,0.28442219,703.18,701.93,1.05977481]
[1735111614073,0.26175137,703.17,701.98,1.05977481]
[1735111614265,0.28443433,703.15,701.98,1.05977481]
[1735111614465,0.26175137,703.14,701.98,1.05977481]
[1735111614667,0.28444646,703.12,701.98,1.05977481]
[1735111614865,0.26175137,703.11,701.98,1.05977481]
[1735111615074,0.2844586,703.09,701.93,1.05977481]
[1735111615367,0.26174829,703.08,701.93,1.05977481]
[1735111615773,0.28447074,703.06,701.93,1.05977481]
[1735111615964,0.26174829,703.05,701.93,1.05977481]
[1735111616167,0.28447883,703.04,701.93,1.05977481]
[1735111616371,0.26174829,703.03,701.93,1.05977481]
[1735111616570,0.28448692,703.02,701.93,1.05977481]
[1735111616769,0.26174829,703.01,701.93,1.05977481]
[1735111616972,0.28448692,703.02,701.93,1.05977481]
[1735111616973,0.28449502,703.0,701.93,1.05977481]
[1735111617776,0.28449502,703.0,701.92,1.05977481]
[1735111618975,0.28449502,703.0,701.68,1.05977481]
[1735111618976,0.28449502,703.0,701.89,1.05977481]
[1735111625076,0.28449502,703.0,701.85,1.05977481]
[1735111625875,0.28449502,703.0,701.9,1.05977481]
[1735111626681,0.28449502,703.0,701.91,1.05977481]
[1735111627784,0.28449502,703.0,701.86,1.05977481]
[1735111628884,0.28449502,703.0,701.44,0.77764633]
[1735111628885,0.28449502,703.0,701.89,1.05977481]
[1735111629788,0.28449502,703.0,701.88,1.05977481]
[1735111630888,0.28449502,703.0,701.89,1.05977481]
[1735111631988,0.28449502,703.0,701.87,1.05977481]
[1735111632887,0.28449502,703.0,701.88,1.05977481]
[1735111635490,0.28449502,703.0,701.89,1.05977481]
[1735111635685,0.26174427,702.99,701.89,1.05977481]
[1735111635993,0.26174427,702.99,702.02,1.05977481]
[1735111637290,0.26173485,702.98,702.02,1.05977481]
[1735111637489,0.26173993,702.99,702.02,1.05977481]
[1735111637690,0.26173993,702.99,701.49,2.16370691]
[1735111637691,0.28450311,702.98,702.04,1.05977481]
[1735111639094,0.28450311,702.98,701.94,1.05977481]
[1735111639393,0.26174999,702.97,701.94,1.05977481]
[1735111640391,0.26174999,702.97,701.91,1.05977481]
[1735111640993,0.2845112,702.96,701.91,1.05977481]
[1735111641595,0.2845112,702.96,701.92,1.05977481]
[1735111642696,0.2845112,702.96,701.28,2.16370691]
[1735111642697,0.2845112,702.96,701.83,1.05977481]
[1735111645295,0.2845112,702.96,701.84,1.05977481]
[1735111646198,0.2845112,702.96,701.85,1.05977481]
[1735111648301,0.2845112,702.96,701.87,1.05977481]
[1735111649592,0.2845112,702.96,701.6,1.05977481]
[1735111649593,0.2845112,702.96,701.86,1.05977481]
[1735111650597,0.2845112,702.96,701.87,1.05977481]
[1735111651503,0.26175633,702.95,701.87,1.05977481]
[1735111652501,0.26175633,702.95,701.9,1.05977481]
[1735111653905,0.2845112,702.96,701.91,1.05977481]
[1735111654105,0.26177004,702.95,701.91,1.05977481]
[1735111654902,0.26177004,702.95,701.92,1.05977481]
[1735111655898,0.2845112,702.96,701.92,1.05977481]
[1735111656099,0.2845112,702.96,701.93,1.05977481]
[1735111656100,0.26176746,702.95,701.93,1.05977481]
[1735111656407,0.2845112,702.96,701.93,1.05977481]
[1735111657203,0.2845112,702.96,701.88,1.05977481]
[1735111658303,0.2845112,702.96,701.92,1.05977481]
[1735111659712,0.2845112,702.96,701.84,1.05977481]
[1735111660708,0.2845112,702.96,701.86,1.05977481]
[1735111661510,0.2845112,702.96,701.88,1.05977481]
[1735111662204,0.2845112,702.96,701.9,1.05977481]
[1735111663305,0.2845112,702.96,701.89,1.05977481]
[1735111667511,0.2845112,702.96,701.88,1.05977481]
[1735111669812,0.2845112,702.96,702.02,1.05977481]
[1735111670111,0.26175336,702.95,702.02,1.05977481]
[1735111670510,0.26175336,702.95,701.81,1.05977481]
[1735111670511,0.2845193,702.94,701.99,1.05977481]
[1735111670711,0.2617566,702.93,701.99,1.05977481]
[1735111671011,0.28452739,702.92,701.99,1.05977481]
[1735111671706,0.28452739,702.92,701.68,1.05977481]
[1735111671707,0.28452739,702.92,701.98,1.05977481]
[1735111672511,0.28452739,702.92,701.96,1.05977481]
[1735111673411,0.28452739,702.92,701.94,1.05977481]
[1735111674512,0.28452739,702.92,701.93,1.05977481]
[1735111675415,0.28452739,702.92,701.92,1.05977481]
[1735111676617,0.28452739,702.92,701.91,1.05977481]
[1735111677515,0.28452739,702.92,701.89,1.05977481]
[1735111678817,0.28452739,702.92,701.84,1.05977481]
[1735111680613,0.28452739,702.92,701.75,1.05977481]
[1735111681615,0.28452739,702.92,701.44,0.77764633]
[1735111681616,0.28452739,702.92,701.82,1.05977481]
[1735111682619,0.28452739,702.92,701.88,1.05977481]
[1735111683818,0.28452739,702.92,701.89,1.05977481]
[1735111685320,0.28452739,702.92,701.9,1.05977481]
[1735111686615,0.28452739,702.92,701.84,1.05977481]
[1735111687423,0.28452739,702.92,701.88,1.05977481]
[1735111688623,0.28452739,702.92,701.44,0.77764633]
[1735111688624,0.28452739,702.92,702.01,1.05977481]
[1735111689625,0.28452739,702.92,701.97,1.05977481]
[1735111690725,0.28452739,702.92,701.96,1.05977481]
[1735111691525,0.28452739,702.92,701.95,1.05977481]
[1735111692530,0.28452739,702.92,701.44,0.77764633]
[1735111692531,0.28452739,702.92,701.94,1.05977481]
[1735111693628,0.28452739,702.92,701.93,1.05977481]
[1735111695227,0.28452739,702.92,701.94,1.05977481]
[1735111696033,0.28452739,702.92,702.03,1.05977481]
[1735111697532,0.28452739,702.92,701.44,0.77764633]
[1735111697533,0.28452739,702.92,701.96,1.05977481]
[1735111698835,0.28452739,702.92,701.93,1.05977481]
[1735111699834,0.28452739,702.92,701.69,1.05977481]
[1735111699835,0.28452739,702.92,701.98,1.05977481]
[1735111701838,0.28452739,702.92,701.97,1.05977481]
[1735111703038,0.28452739,702.92,702.0,1.05977481]
[1735111704641,0.28452739,702.92,701.98,1.05977481]
[1735111705738,0.28452739,702.92,701.97,1.05977481]
[1735111706432,0.28452739,702.92,702.03,1.05977481]
[1735111711341,0.28452739,702.92,702.02,1.05977481]
[1735111713041,0.28452739,702.92,702.03,1.05977481]
[1735111713840,0.28452739,702.92,702.04,1.05977481]
[1735111715837,0.28452739,702.92,702.02,1.05977481]
[1735111717037,0.28452739,702.92,702.03,1.05977481]
[1735111718044,0.28452739,702.92,702.05,1.05977481]
[1735111719139,0.28452739,702.92,702.06,1.05977481]
[1735111720341,0.28452739,702.92,702.13,1.05977481]
[1735111721441,0.28452739,702.92,702.09,1.05977481]
[1735111725651,0.28452739,702.92,701.44,0.77764633]
[1735111725847,0.28452739,702.92,701.46,0.2851196]
[1735111726449,0.28452739,702.92,702.09,1.06495334]
[1735111727550,0.28452739,702.92,701.46,0.2851196]
[1735111727551,0.28452739,702.92,702.06,1.06495334]
[1735111728848,0.28452739,702.92,702.04,1.06495334]
[1735111730150,0.28452739,702.92,702.06,1.06495334]
[1735111731252,0.28452739,702.92,702.18,1.06495334]
[1735111732355,0.28452739,702.92,702.09,1.06495334]
[1735111733451,0.28452739,702.92,702.1,1.06495334]
[1735111734453,0.28452739,702.92,702.09,1.06495334]
[1735111735753,0.28452739,702.92,702.07,1.06495334]
[1735111736658,0.28452739,702.92,702.08,1.06495334]
[1735111738157,0.28452739,702.92,702.09,1.06495334]
[1735111739155,0.28452739,702.92,702.1,1.06495334]
[1735111740358,0.28452739,702.92,702.11,1.06495334]
[1735111741360,0.28452739,702.92,702.13,1.06495334]
[1735111742356,0.28452739,702.92,701.23,2.17427974]
[1735111742357,0.28452739,702.92,702.21,1.06495334]
[1735111743462,0.28452739,702.92,702.25,1.06495334]
[1735111744555,0.28452739,702.92,702.23,1.06495334]
[1735111745860,0.28452739,702.92,702.24,1.06495334]
[1735111748565,0.28452739,702.92,701.44,2.17427974]
[1735111748566,0.28452739,702.92,702.17,1.06495334]
[1735111749570,0.28452739,702.92,702.16,1.06495334]
[1735111750568,0.28452739,702.92,702.17,1.06495334]
[1735111752574,0.28452739,702.92,702.16,1.06495334]
[1735111754469,0.28452739,702.92,702.2,1.06495334]
[1735111755772,1.05876679,704.0,702.2,1.06495334]
[1735111755969,0.28409898,703.98,702.2,1.06495334]
[1735111756175,0.26157093,703.97,702.2,1.06495334]
[1735111756371,0.28411108,703.95,702.29,1.06495334]
[1735111756574,0.26157093,703.94,702.29,1.06495334]
[1735111756776,0.28412319,703.92,702.29,1.06495334]
[1735111756975,0.26157143,703.91,702.29,1.06495334]
[1735111757178,0.2841353,703.89,702.29,1.06495334]
[1735111757380,0.26157143,703.88,702.29,1.06495334]
[1735111758377,0.28414741,703.86,702.26,1.06495334]
[1735111758676,0.26157143,703.85,702.26,1.06495334]
[1735111758881,0.28415952,703.83,702.26,1.06495334]
[1735111759181,0.26157143,703.82,702.26,1.06495334]
[1735111759377,0.28417163,703.8,702.26,1.06495334]
[1735111759587,0.26158516,703.79,702.25,1.06495334]
[1735111759977,0.28418375,703.77,702.25,1.06495334]
[1735111760183,0.26158516,703.76,702.25,1.06495334]
[1735111760385,0.28419586,703.74,702.25,1.06495334]
[1735111760585,0.26158661,703.73,702.25,1.06495334]
[1735111760785,0.28420798,703.71,702.25,1.06495334]
[1735111760987,0.26158661,703.7,702.22,1.06495334]
[1735111761587,0.2842201,703.68,702.22,1.06495334]
[1735111761787,0.26158661,703.67,702.22,1.06495334]
[1735111762288,0.28423221,703.65,702.18,1.06495334]
[1735111762481,0.26160138,703.64,702.18,1.06495334]
[1735111762684,0.28424433,703.62,702.18,1.06495334]
[1735111762885,0.26160138,703.61,702.18,1.06495334]
[1735111763088,0.28425645,703.59,702.18,1.06495334]
[1735111763286,0.26160138,703.58,702.18,1.06495334]
[1735111763485,0.28426857,703.56,702.2,1.06495334]
[1735111763687,0.26160138,703.55,702.2,1.06495334]
[1735111764288,0.28428069,703.53,702.2,1.06495334]
[1735111765689,0.28428069,703.53,702.23,1.06495334]
[1735111766689,0.28428069,703.53,702.25,1.06495334]
[1735111767591,0.28428069,703.53,702.36,1.06495334]
[1735111768489,0.28428069,703.53,702.37,1.06495334]
[1735111768685,0.2615765,703.52,702.37,1.06495334]
[1735111769591,0.2615765,703.52,702.35,1.06495334]
[1735111770189,0.26158879,703.51,702.35,1.06495334]
[1735111770385,0.26158879,703.5,702.36,1.06495334]
[1735111770689,0.26157992,703.49,702.36,1.06495334]
[1735111770989,0.26157992,703.48,702.36,1.06495334]
[1735111771189,0.26157992,703.47,702.36,1.06495334]
[1735111771388,0.26157992,703.46,702.36,1.06495334]
[1735111771589,0.26157992,703.45,702.39,1.06495334]
[1735111771785,0.26157992,703.44,702.39,1.06495334]
[1735111771989,0.26157992,703.43,702.39,1.06495334]
[1735111772190,0.26157992,703.42,702.39,1.06495334]
[1735111772492,0.26157992,703.42,701.72,2.17427974]
[1735111772493,0.28428069,703.53,702.42,1.06495334]
[1735111772692,0.26157513,703.52,702.42,1.06495334]
[1735111773891,0.26157513,703.52,702.44,1.06495334]
[1735111774490,0.28429282,703.5,702.44,1.06495334]
[1735111774691,0.26157513,703.49,702.44,1.06495334]
[1735111774894,0.26157513,703.49,702.46,1.06495334]
[1735111775094,0.28430494,703.47,702.46,1.06495334]
[1735111775295,0.26157513,703.46,702.46,1.06495334]
[1735111775497,0.28431707,703.44,702.46,1.06495334]
[1735111775693,0.26157513,703.43,702.46,1.06495334]
[1735111775894,0.28432919,703.41,702.46,1.06495334]
[1735111776195,0.28432919,703.41,702.45,1.06495334]
[1735111776394,0.26157747,703.4,702.45,1.06495334]
[1735111776594,0.28433728,703.39,702.45,1.06495334]
[1735111777197,0.28433728,703.39,702.47,1.06495334]
[1735111779197,0.28433728,703.39,702.45,1.06495334]
[1735111779898,0.28433728,703.39,702.21,1.06495334]
[1735111779899,0.28433728,703.39,702.44,1.06495334]
[1735111780899,0.28433728,703.39,701.79,2.17427974]
[1735111780900,0.28433728,703.39,702.46,1.06495334]
[1735111781999,0.28433728,703.39,702.45,1.06495334]
[1735111784299,0.28433728,703.39,702.44,1.06495334]
[1735111786201,0.28433728,703.39,702.45,1.06495334]
[1735111787194,0.28433728,703.39,702.49,1.06495334]
[1735111788204,0.28433728,703.39,702.51,1.06495334]
[1735111789502,0.28433728,703.39,702.54,1.06495334]
[1735111790205,0.28433728,703.39,702.07,1.06495334]
[1735111791604,0.28433728,703.39,701.53,1.84369706]
[1735111791605,0.28433728,703.39,702.0,1.06495334]
[1735111793499,0.28433728,703.39,702.04,1.06495334]
[1735111794607,0.28433728,703.39,702.01,1.06495334]
[1735111795901,0.28433728,703.39,701.99,1.06495334]
[1735111797608,0.2616499,703.38,701.99,1.06495334]
[1735111797804,0.2843494,703.36,701.96,1.06495334]
[1735111798512,0.26165839,703.35,701.96,1.06495334]
[1735111798806,0.28436153,703.33,702.0,1.06495334]
[1735111800215,0.28436153,703.33,701.97,1.06495334]
[1735111800608,0.26166203,703.32,701.97,1.06495334]
[1735111801413,0.26166203,703.32,701.96,1.06495334]
[1735111801607,0.28437366,703.3,701.96,1.06495334]
[1735111801807,0.26166449,703.29,701.96,1.06495334]
[1735111802016,0.28438579,703.27,701.96,1.06495334]
[1735111803215,0.28438579,703.27,701.99,1.06495334]
[1735111803411,0.26166161,703.26,701.99,1.06495334]
[1735111803615,0.28439792,703.24,701.99,1.06495334]
[1735111804018,0.28439792,703.24,701.98,1.06495334]
[1735111805019,0.28439792,703.24,701.97,1.06495334]
[1735111805919,0.28439792,703.24,701.55,0.77874372]
[1735111805920,0.28439792,703.24,701.96,1.06495334]
[1735111807024,0.28439792,703.24,701.99,1.06495334]
[1735111808522,0.28439792,703.24,701.76,1.06495334]
[1735111808523,0.28439792,703.24,702.01,1.06495334]
[1735111809722,0.28439792,703.24,701.55,0.77874372]
[1735111809723,0.28439792,703.24,701.98,1.06495334]
[1735111811024,0.28439792,703.24,702.03,1.06495334]
[1735111811627,0.28439792,703.24,701.69,1.06495334]
[1735111811628,0.28439792,703.24,701.98,1.06495334]
[1735111812630,0.28439792,703.24,701.55,0.77874372]
[1735111812631,0.28439792,703.24,701.96,1.06495334]
[1735111813626,0.28439792,703.24,701.95,1.06495334]
[1735111815428,0.28439792,703.24,701.55,0.77874372]
[1735111815429,0.28439792,703.24,701.99,1.06495334]
[1735111816933,0.28439792,703.24,702.01,1.06495334]
[1735111818231,0.28439792,703.24,701.66,1.06495334]
[1735111818232,0.28439792,703.24,701.96,1.06495334]
[1735111818924,0.28439792,703.24,701.93,1.06495334]
[1735111820126,0.28439792,703.24,701.94,1.06495334]
[1735111821231,0.28439792,703.24,701.99,1.06495334]
[1735111822537,0.28439792,703.24,702.01,1.06495334]
[1735111825539,0.28439792,703.24,702.11,1.06495334]
[1735111826734,0.28439792,703.24,702.24,1.06495334]
[1735111827741,0.28439792,703.24,702.32,1.06495334]
[1735111828542,0.28439792,703.24,702.3,1.06495334]
[1735111828743,0.26163916,703.23,702.3,1.06495334]
[1735111829242,0.28440601,703.22,702.3,1.06495334]
[1735111829844,0.28440601,703.22,702.31,1.06495334]
[1735111830241,0.26163184,703.21,702.31,1.06495334]
[1735111830844,0.26163184,703.21,702.34,1.06495334]
[1735111831039,0.28440601,703.22,702.34,1.06495334]
[1735111831645,0.28440601,703.22,702.31,1.06495334]
[1735111832544,0.26163327,703.21,702.31,1.06495334]
[1735111832746,0.26163327,703.21,701.68,2.17427974]
[1735111832747,0.2844141,703.2,702.35,1.06495334]
[1735111833645,0.2844141,703.2,702.2,1.06495334]
[1735111834645,0.2844141,703.2,702.23,1.06495334]
[1735111835453,0.2844141,703.2,702.31,1.06495334]
[1735111836551,0.2844141,703.2,702.22,1.06495334]
[1735111840750,0.2844141,703.2,702.18,1.06495334]
[1735111842053,0.2844141,703.2,701.82,1.06495334]
[1735111843150,0.2844141,703.2,701.84,1.06495334]
[1735111844149,0.2844141,703.2,701.89,1.06495334]
[1735111845054,0.2844141,703.2,701.87,1.06495334]
[1735111845948,0.2844141,703.2,701.89,1.06495334]
[1735111847347,0.2844141,703.2,701.97,1.06495334]